bitfinex-derivatives/quotes_ETHF0:USTF0_20250627
["timestamp","ask_amount","ask_price","bid_price","bid_amount"]
[1750995877285,1.73356204,2444.7,2444.5,0.40889]
[1750995877475,1.01566204,2444.6,2444.5,0.40889]
[1750995887988,1.01566204,2444.6,2444.5,0.4089]
[1750995888189,2.42536204,2444.6,2444.5,0.4089]
[1750995888786,2.42536204,2444.6,2444.3,0.7268]
[1750995889087,1.01566204,2444.5,2444.4,0.40891]
[1750995891590,1.01566204,2444.5,2444.4,3.61671]
[1750995895201,1.02119833,2444.6,2444.4,3.2078]
[1750995895392,1.02119833,2444.5,2444.4,3.61672]
[1750995905901,1.02119833,2444.5,2444.4,6.56897594]
[1750995906109,0.7259,2444.9,2444.8,0.40885]
[1750995906609,2.1652,2445.2,2444.8,6.16005594]
[1750995906907,0.7259,2445.1,2445.0,0.40882]
[1750995910618,0.7046,2445.2,2445.1,0.4088]
[1750995910817,0.7046,2445.2,2445.1,3.6166]
[1750995911714,0.6916,2445.4,2445.3,0.40877]
[1750995912019,0.7281,2445.6,2445.5,0.40873]
[1750995913220,2.0579,2445.9,2445.8,0.40868]
[1750995913412,2.786,2445.9,2445.8,0.40868]
[1750995913611,1.4558,2445.9,2445.8,0.40868]
[1750995916419,5.64801139,2446.3,2446.2,0.40862]
[1750995916619,6.99781139,2446.3,2446.1,0.40862]
[1750995916821,4.30205594,2446.2,2446.1,0.40862]
[1750995917714,1.3498,2446.2,2446.1,0.40862]
[1750995917922,6.05407594,2446.2,2445.8,0.6808]
[1750995918124,1.01038328,2446.1,2446.0,0.40865]
[1750995918316,2.43268328,2446.1,2446.0,0.40865]
[1750995921122,1.4223,2446.1,2446.0,0.40865]
[1750995925023,4.29565594,2446.2,2446.1,0.40863]
[1750995925326,1.3434,2446.2,2446.1,0.40863]
[1750995928224,1.3478,2446.5,2446.0,6.16005594]
[1750995928418,2.0314,2446.5,2446.0,3.2078]
[1750995928618,0.6836,2446.5,2446.4,0.40858]
[1750995928824,8.00416594,2446.9,2446.6,0.40854]
[1750995929023,2.1192,2446.8,2446.6,0.40854]
[1750995929230,5.07145594,2446.8,2446.6,0.40854]
[1750995929427,0.6644,2446.7,2446.6,0.40854]
[1750995929725,0.6644,2446.7,2446.6,0.40855]
[1750995929920,2.1,2446.7,2446.6,0.40855]
[1750995933722,2.1,2446.7,2446.6,0.29579316]
[1750995938225,0.6644,2446.7,2446.6,0.29579316]
[1750995944732,0.6836,2446.8,2446.7,0.40853]
[1750995944931,1.3435,2446.8,2446.7,0.40853]
[1750995945327,4.29575594,2446.8,2446.4,0.706]
[1750995945532,4.29575594,2446.8,2446.3,3.2078]
[1750995945533,6.16005594,2446.6,2446.0,3.2078]
[1750995945846,3.36084594,2446.4,2446.1,0.40863]
[1750995946142,2.0464,2446.3,2446.1,0.40863]
[1750995946335,2.7063,2446.3,2446.2,0.40862]
[1750995950243,2.7063,2446.3,2446.1,0.40862]
[1750995950944,2.7063,2446.3,2446.2,0.40862]
[1750995952845,0.40863,2446.1,2446.0,3.2078]
[1750995953046,2.95225594,2446.1,2445.7,0.6652]
[1750995953340,2.1028,2446.0,2445.9,0.40867]
[1750995953732,2.1028,2446.0,2445.7,41.4652]
[1750995953733,2.1028,2446.0,2445.8,0.40867]
[1750995953938,1.3996,2445.9,2445.8,0.40867]
[1750995959452,1.80827,2445.9,2445.7,0.4087]
[1750995959752,0.6667,2445.8,2445.7,0.4087]
[1750995959948,0.6667,2445.8,2445.6,41.20871]
[1750995960153,2.1307,2445.7,2445.6,0.40872]
[1750995960340,2.5394,2445.7,2445.6,0.40872]
[1750995960546,2.5394,2445.7,2445.5,6.79672]
[1750995960854,2.5394,2445.7,2445.6,0.40872]
[1750995961349,5.08295594,2445.7,2445.3,3.2078]
[1750995961551,1.3314,2445.6,2445.5,0.40873]
[1750995962053,0.7217,2445.7,2445.5,0.40873]
[1750995962253,0.7217,2445.7,2445.6,0.40872]
[1750995962549,0.7217,2445.7,2445.5,0.40872]
[1750995963048,2.4618,2445.7,2445.5,0.40872]
[1750995963250,0.40872,2445.6,2445.3,3.61655]
[1750995963553,1.74012,2445.6,2445.3,3.61655]
[1750995964048,1.3314,2445.6,2445.5,0.40873]
[1750995964260,0.7217,2445.7,2445.5,0.40873]
[1750995965550,0.7217,2445.7,2445.6,0.40872]
[1750995966455,0.6667,2445.8,2445.7,0.4087]
[1750995966648,1.4143,2446.0,2445.9,0.40867]
[1750995966649,0.7005,2446.0,2445.9,0.40867]
[1750995966855,1.72183993,2446.0,2445.9,0.40867]
[1750995969849,1.72183993,2446.0,2445.9,1.08007]
[1750995974659,1.72183993,2446.0,2445.9,0.40867]
[1750995975261,2.13049993,2446.0,2445.5,6.383]
[1750995975450,2.47063993,2445.9,2445.5,7.0693]
[1750995975654,1.4493,2445.9,2445.5,7.0693]
[1750995976160,1.4493,2445.9,2445.8,0.40868]
[1750995976458,2.47144396,2445.9,2445.8,0.40868]
[1750995981268,1.02214396,2445.9,2445.8,0.40868]
[1750995985166,0.7005,2446.0,2445.8,0.40868]
[1750995985369,0.7005,2446.0,2445.9,0.40867]
[1750995985574,10.276,2446.2,2446.1,0.40863]
[1750995985868,11.30048482,2446.2,2446.1,0.40863]
[1750995986269,4.91748482,2446.2,2446.1,0.40863]
[1750995986567,4.23228482,2446.2,2446.1,0.40863]
[1750995986771,1.02448482,2446.2,2446.1,3.61643]
[1750995989172,1.02448482,2446.2,2446.1,3.2078]
[1750995989372,1.02448482,2446.2,2445.9,0.7263]
[1750995989571,0.40865,2446.0,2445.7,0.40869]
[1750995989869,3.61645,2446.0,2445.7,0.40869]
[1750995990173,5.04395,2446.0,2445.7,0.40869]
[1750995990377,5.04395,2446.0,2445.8,0.40867]
[1750995990578,4.6353,2446.0,2445.8,0.40867]
[1750995990770,1.4275,2446.0,2445.9,0.40867]
[1750995991463,2.4514575,2446.0,2445.9,0.40867]
[1750995991874,2.4514575,2446.0,2445.8,0.40867]
[1750995992075,1.4275,2446.0,2445.8,0.40867]
[1750995994276,1.83615,2446.0,2445.7,0.40869]
[1750995994479,1.02389002,2445.9,2445.6,4.31621]
[1750995994777,1.79428,2445.9,2445.6,4.31621]
[1750995994971,2.95225594,2445.8,2445.5,6.383]
[1750995995173,0.6843,2445.7,2445.6,0.40871]
[1750995995379,1.7583,2445.7,2445.5,6.79173]
[1750995995582,1.7583,2445.7,2445.5,6.383]
[1750995995777,2.7352,2445.7,2445.5,6.383]
[1750995996173,3.1439,2445.7,2445.5,6.383]
[1750995996375,2.7352,2445.7,2445.5,6.79173]
[1750995996578,2.7352,2445.7,2445.5,6.383]
[1750995996784,2.7352,2445.7,2445.5,6.79172]
[1750995996983,3.1439,2445.7,2445.5,6.79173]
[1750995997384,3.1439,2445.7,2445.5,0.40873]
[1750995997684,0.40872,2445.6,2445.4,1.13884]
[1750995997988,3.14391,2445.7,2445.5,0.40873]
[1750995998190,2.7352,2445.7,2445.6,0.40872]
[1750995998892,2.7352,2445.7,2445.5,0.40872]
[1750996000694,1.3496,2445.7,2445.5,0.40872]
[1750996001589,1.75831,2445.7,2445.4,4.09109594]
[1750996001791,0.40872,2445.6,2445.4,3.68235594]
[1750996001993,0.40872,2445.6,2445.4,0.7301]
[1750996002592,0.40872,2445.6,2445.4,1.13885]
[1750996002895,0.40873,2445.5,2445.4,0.7301]
[1750996003082,1.84733,2445.5,2445.3,3.2078]
[1750996003395,1.4386,2445.5,2445.3,3.61656]
[1750996004196,1.4386,2445.5,2445.4,0.40875]
[1750996004493,1.75831,2445.7,2445.4,0.40875]
[1750996004694,1.75831,2445.7,2445.5,0.40873]
[1750996004885,3.15651,2445.7,2445.5,0.40873]
[1750996005291,2.7478,2445.7,2445.5,0.40873]
[1750996005689,1.3496,2445.7,2445.5,0.40873]
[1750996005991,8.18384,2446.1,2445.8,0.40867]
[1750996006193,1.02421225,2446.0,2445.9,0.40867]
[1750996007190,1.02421225,2446.0,2445.8,0.40867]
[1750996007387,1.02421225,2445.9,2445.8,0.40867]
[1750996007587,1.02421225,2446.0,2445.8,0.40867]
[1750996008298,1.02421225,2446.0,2445.6,3.9277]
[1750996008299,1.43287225,2446.0,2445.6,3.9277]
[1750996008496,1.02421225,2445.9,2445.8,0.40868]
[1750996010100,1.02410174,2445.9,2445.6,6.87995594]
[1750996010398,1.02410174,2445.8,2445.7,0.4087]
[1750996010600,7.44544,2446.1,2445.9,0.40866]
[1750996010900,1.02406638,2446.0,2445.9,0.40866]
[1750996011195,0.40867,2445.9,2445.7,0.40869]
[1750996011396,1.43274638,2445.8,2445.6,0.4087]
[1750996011599,0.6682,2445.8,2445.6,0.4087]
[1750996011793,0.7039,2445.7,2445.6,0.4087]
[1750996012388,0.7039,2445.7,2445.4,0.7013]
[1750996012593,0.7039,2445.7,2445.5,0.40872]
[1750996013001,0.40864,2446.1,2445.7,0.40868]
[1750996013197,1.02405064,2446.0,2445.9,0.40867]
[1750996013397,1.02405064,2446.0,2445.9,3.36092594]
[1750996014200,11.36552,2446.2,2445.9,3.36092594]
[1750996014502,1.43257846,2446.1,2445.8,1.10997]
[1750996014702,1.02393846,2446.0,2445.8,1.10997]
[1750996016189,1.43258846,2446.0,2445.8,0.7013]
[1750996016395,1.0240311,2445.9,2445.8,1.10998]
[1750996016996,1.0240311,2445.9,2445.8,0.7013]
[1750996017200,1.4327011,2445.9,2445.6,3.61651]
[1750996017498,1.4327011,2445.9,2445.7,0.4087]
[1750996017499,1.68871694,2445.8,2445.7,0.4087]
[1750996020903,7.0684,2446.1,2445.8,0.40868]
[1750996021198,1.02452295,2446.0,2445.8,0.40868]
[1750996021399,1.02452295,2445.9,2445.8,0.40868]
[1750996022100,1.02452295,2446.0,2445.8,0.40868]
[1750996023301,1.02452295,2446.0,2445.9,0.40867]
[1750996024801,1.02452295,2446.0,2445.8,0.40867]
[1750996029005,1.02452295,2446.0,2445.9,0.40867]
[1750996029809,1.02452295,2446.0,2445.8,0.40867]
[1750996030212,2.36342295,2446.0,2445.9,0.40867]
[1750996030402,2.36342295,2446.0,2445.8,0.40867]
[1750996030701,1.02452295,2445.9,2445.8,0.40867]
[1750996032202,10.02065594,2446.1,2445.9,0.40867]
[1750996032405,1.02492509,2446.0,2445.9,0.40867]
[1750996032902,2.37312509,2446.0,2445.9,0.40867]
[1750996033101,1.02492509,2446.0,2445.9,0.40867]
[1750996033808,1.02492509,2446.0,2445.8,0.40867]
[1750996034012,1.02492509,2445.9,2445.8,0.40867]
[1750996034208,1.02492509,2445.9,2445.7,0.40869]
[1750996034416,1.02492509,2445.8,2445.7,0.40869]
[1750996034609,0.6914,2446.1,2445.8,0.40868]
[1750996034913,1.43379488,2446.0,2445.7,0.40869]
[1750996035112,1.02514488,2445.9,2445.7,0.40869]
[1750996035312,1.02514488,2445.9,2445.8,0.40868]
[1750996035716,1.02531949,2445.9,2445.8,0.40867]
[1750996048824,1.02531949,2445.9,2445.8,3.61647]
[1750996050931,1.02531949,2445.9,2445.8,0.40867]
[1750996051728,1.02531949,2445.9,2445.8,3.61647]
[1750996057535,1.02531949,2445.9,2445.8,0.40867]
[1750996060340,1.02531949,2445.9,2445.8,3.61647]
[1750996063439,1.02531949,2445.9,2445.8,0.40867]
[1750996063840,1.02531949,2445.9,2445.8,3.61647]
[1750996070253,0.6914,2446.1,2446.0,0.40865]
[1750996070551,1.71836545,2446.1,2446.0,0.40865]
[1750996071054,1.71836545,2446.1,2446.0,1.08315]
[1750996076551,0.6682,2446.2,2446.1,0.40863]
[1750996076749,1.69441432,2446.2,2446.1,0.40863]
[1750996076948,1.02621432,2446.2,2446.1,0.40863]
[1750996077852,1.02621432,2446.2,2446.1,3.36088594]
[1750996078150,1.02621432,2446.2,2446.1,6.56868594]
[1750996078457,1.02621432,2446.2,2446.1,7.88838594]
[1750996079250,0.6681,2446.5,2446.4,0.40858]
[1750996079751,0.6681,2446.5,2446.4,3.61638]
[1750996079947,0.6681,2446.5,2446.4,4.29588]
[1750996080661,0.6681,2446.5,2446.4,0.40858]
[1750996080856,2.125,2446.5,2446.4,0.40858]
[1750996081958,2.125,2446.5,1594.4,1.21564649]
[1750996081959,0.40859,2446.4,2445.8,3.2078]
[1750996082145,2.95225594,2446.2,2445.8,3.2078]
[1750996082350,2.95225594,2446.0,2445.9,0.40866]
[1750996082755,5.12435594,2446.0,2445.9,0.40866]
[1750996084463,2.1721,2446.0,2445.9,0.40866]
[1750996086667,2.1721,2446.0,2445.8,3.61647]
[1750996086868,1.3604,2445.9,2445.8,3.61647]
[1750996087762,4.31265594,2445.9,2445.7,6.364]
[1750996088067,0.7092,2445.8,2445.7,6.77269]
[1750996088266,2.0696,2445.8,2445.7,6.77269]
[1750996088564,2.0696,2445.8,2445.7,6.364]
[1750996088967,2.0696,2445.8,2445.7,6.7727]
[1750996089571,2.0696,2445.8,2445.7,6.364]
[1750996089868,2.0696,2445.8,2445.4,10.298]
[1750996090166,1.4037,2445.7,2445.6,0.4087]
[1750996091762,1.4037,2445.7,2445.4,10.298]
[1750996091958,1.4037,2445.7,2445.6,0.40872]
[1750996092170,1.4037,2445.7,2445.4,10.298]
[1750996092171,0.40873,2445.5,2445.4,3.2078]
[1750996092472,0.40877,2445.3,2445.0,3.65667535]
[1750996092662,3.61657,2445.3,2445.0,0.40881]
[1750996092858,1.3475,2445.2,2444.9,6.20012129]
[1750996093073,1.3475,2445.2,2445.0,3.65666535]
[1750996093268,1.3475,2445.2,2445.1,0.4088]
[1750996094371,1.3475,2445.2,2445.0,0.40881]
[1750996094667,0.7021,2445.1,2445.0,0.40881]
[1750996102774,0.7316,2445.4,2445.3,0.40877]
[1750996102972,0.6751,2445.5,2445.4,0.40875]
[1750996105275,3.2078,2445.6,2445.5,0.40873]
[1750996105679,3.2078,2445.6,2445.5,1.10053]
[1750996106274,4.22505929,2445.6,2445.5,1.10053]
[1750996106476,1.01725929,2445.6,2445.5,1.10053]
[1750996106683,1.01725929,2445.6,2445.5,0.40873]
[1750996106971,0.40874,2445.5,2445.3,0.40877]
[1750996107178,4.35975594,2445.4,2445.3,0.40877]
[1750996107480,5.02595594,2445.4,2445.3,0.40877]
[1750996107676,6.04326781,2445.4,2444.7,5.2868]
[1750996107871,2.95225594,2445.0,2444.9,0.40883]
[1750996108378,2.95225594,2445.2,2444.8,0.7304]
[1750996108572,4.31475594,2445.2,2445.0,0.4088]
[1750996111382,4.72354594,2445.2,2444.9,0.40883]
[1750996112582,4.72354594,2445.2,2444.7,5.2868]
[1750996112583,2.95225594,2445.0,2444.7,3.2078]
[1750996112876,0.7284,2444.9,2444.7,3.61666]
[1750996113274,0.7284,2444.9,2444.8,0.40885]
[1750996113583,0.7284,2444.9,2444.7,3.61666]
[1750996113785,0.7284,2444.9,2444.8,0.6866]
[1750996116378,0.7284,2444.9,2444.8,1.09545]
[1750996118480,9.5678,2445.2,2444.9,0.40882]
[1750996118786,10.65819,2445.2,2444.8,0.6866]
[1750996118987,4.32435594,2445.1,2444.8,1.09544]
[1750996119186,4.73316594,2445.1,2444.8,1.09544]
[1750996119782,1.3721,2445.0,2444.8,1.09544]
[1750996120280,3.63385594,2444.9,2444.7,0.40886]
[1750996120579,2.0271,2444.8,2444.7,0.40886]
[1750996125993,0.6599,2444.8,2444.7,0.40886]
[1750996129691,1.83731,2445.1,2444.8,0.40884]
[1750996129888,1.02086997,2445.0,2444.9,0.40882]
[1750996131882,2.48506997,2445.0,2444.9,0.40882]
[1750996134297,1.4642,2445.0,2444.9,0.40882]
[1750996134496,2.48555244,2445.0,2444.9,0.40882]
[1750996137800,1.02135244,2445.0,2444.9,0.40882]
[1750996144312,1.71555244,2445.0,2444.6,3.2078]
[1750996144507,1.02135244,2444.9,2444.8,0.40884]
[1750996148808,1.02135244,2444.9,2444.7,0.40886]
[1750996149113,0.6704,2444.8,2444.7,0.40886]
[1750996149312,1.69175244,2444.8,2444.7,0.40886]
[1750996156114,1.69175244,2444.8,2444.6,3.2078]
[1750996156318,0.6704,2444.8,2444.6,3.2078]
[1750996156502,0.6704,2444.8,2444.6,3.61667]
[1750996157016,2.1324,2444.8,2444.6,3.61667]
[1750996157207,2.54126,2444.8,2444.6,3.2078]
[1750996157409,1.462,2444.7,2444.6,3.2078]
[1750996157920,1.462,2444.7,2444.6,3.61668]
[1750996158213,0.6704,2444.8,2444.6,3.61668]
[1750996158720,0.6704,2444.8,2444.7,0.40887]
[1750996158909,1.69229864,2444.8,2444.7,0.40887]
[1750996159415,1.69229864,2444.8,2444.6,3.61667]
[1750996159612,0.6704,2444.8,2444.6,3.61667]
[1750996160324,0.6704,2444.8,2444.7,0.40887]
[1750996160622,1.6923912,2444.8,2444.6,3.61667]
[1750996160811,0.6704,2444.8,2444.6,3.61667]
[1750996162812,0.6704,2444.8,2444.7,0.40887]
[1750996163213,1.69237605,2444.8,2444.7,0.40887]
[1750996163512,4.90017605,2444.8,2444.3,3.2078]
[1750996163719,0.6704,2444.8,2444.5,0.40889]
[1750996164021,0.6704,2444.8,2444.6,3.61668]
[1750996164223,1.07925,2444.8,2444.5,0.40889]
[1750996164720,0.6704,2444.8,2444.5,0.40889]
[1750996164918,0.6704,2444.8,2444.4,4.98355594]
[1750996165123,0.40879,2445.2,2444.9,0.40882]
[1750996165315,1.02187506,2445.1,2445.0,0.7146]
[1750996165825,1.02187506,2445.1,2445.0,4.07567594]
[1750996166218,3.9247,2445.4,2445.2,0.40878]
[1750996166522,1.02134777,2445.3,2445.0,5.04625594]
[1750996166720,1.02134777,2445.2,2445.0,5.45505594]
[1750996166921,4.33345,2445.4,2445.0,5.45505594]
[1750996167216,1.02135125,2445.3,2445.1,0.40879]
[1750996167415,1.0210819,2445.2,2445.1,0.40879]
[1750996168517,1.0210819,2445.2,2445.0,5.45506594]
[1750996168717,4.33345,2445.4,2445.1,0.4088]
[1750996168917,1.0208989,2445.3,2445.0,5.45506594]
[1750996169216,1.0208989,2445.2,2445.0,5.45506594]
[1750996169419,1.12565,2445.4,2445.0,5.45506594]
[1750996169718,1.02067884,2445.3,2445.1,0.4088]
[1750996169914,1.12565,2445.4,2445.2,3.2078]
[1750996170115,1.02067766,2445.3,2445.2,3.2078]
[1750996170510,1.42944766,2445.3,2445.2,3.2078]
[1750996171620,0.40877,2445.3,2445.2,3.2078]
[1750996171821,0.7169,2445.4,2445.2,6.16005594]
[1750996172018,1.11193,2445.5,2445.2,6.56882594]
[1750996172218,1.11193,2445.5,2445.3,0.7277]
[1750996172621,1.12483,2445.6,2445.3,0.7277]
[1750996172815,0.6896,2445.9,2445.4,2.95225594]
[1750996173010,0.6896,2445.9,2445.7,3.36094594]
[1750996173419,0.6896,2445.9,2445.8,1.12208]
[1750996174420,0.6896,2445.9,2445.8,0.7134]
[1750996174824,0.6896,2445.9,2445.8,1.12208]
[1750996175121,3.36088594,2446.2,2445.9,0.40867]
[1750996175327,1.02171356,2446.1,2445.9,0.40867]
[1750996175526,1.02171356,2446.0,2445.9,0.40867]
[1750996175827,0.40863,2446.1,2445.8,1.12207]
[1750996177325,0.40863,2446.1,2445.9,0.40866]
[1750996177625,1.11063,2446.2,2445.9,0.40866]
[1750996177927,1.11063,2446.2,2445.8,1.12207]
[1750996178320,0.40864,2446.1,2445.8,1.12207]
[1750996178524,0.40864,2446.1,2445.9,0.40866]
[1750996178826,5.45698594,2446.2,2445.9,0.40866]
[1750996179225,5.04835594,2446.2,2445.9,0.40866]
[1750996179524,5.45698594,2446.2,2445.9,0.40866]
[1750996180432,0.7315,2446.4,2446.1,2.95225594]
[1750996180629,1.4017,2446.4,2446.2,1.12141]
[1750996181322,1.4017,2446.4,2446.3,0.4086]
[1750996182029,1.4017,2446.4,2446.3,3.6164]
[1750996185735,4.78089594,2446.7,2446.3,3.6164]
[1750996185935,1.4233,2446.6,2446.4,0.40858]
[1750996186126,2.8745,2446.6,2446.4,0.40858]
[1750996186532,2.8745,2446.6,2446.5,0.40857]
[1750996186730,1.4233,2446.6,2446.5,0.40857]
[1750996187236,1.4233,2446.6,2446.4,0.40858]
[1750996187538,1.4233,2446.6,2446.3,3.2078]
[1750996187539,1.4233,2446.6,2446.5,0.40857]
[1750996189133,1.4233,2446.6,2446.4,0.40857]
[1750996189532,1.4233,2446.6,2446.5,0.40857]
[1750996190339,1.4233,2446.6,2446.4,0.40857]
[1750996190537,2.7812,2446.6,2446.4,0.40857]
[1750996190743,2.7812,2446.6,2446.3,3.2078]
[1750996190744,3.18975,2446.6,2446.3,3.61639]
[1750996190939,4.71872594,2446.5,2446.3,3.2078]
[1750996191125,4.71872594,2446.5,2446.3,3.61639]
[1750996191330,4.31015594,2446.5,2446.3,3.61639]
[1750996191738,1.4233,2446.6,2446.4,0.40858]
[1750996192239,2.7812,2446.6,2446.4,0.40858]
[1750996192440,2.7812,2446.6,2446.5,0.40857]
[1750996192940,2.7812,2446.6,2446.4,0.40857]
[1750996193331,2.7812,2446.6,2446.5,0.40857]
[1750996193639,2.7812,2446.6,2446.4,0.40857]
[1750996193841,3.18975,2446.6,2446.4,0.40857]
[1750996194041,3.18975,2446.6,2446.3,3.61639]
[1750996194239,1.3337,2446.5,2446.3,3.61639]
[1750996194539,1.3337,2446.5,2446.4,0.40858]
[1750996194946,1.3337,2446.5,2446.3,3.61639]
[1750996195343,1.3337,2446.5,2446.3,0.40859]
[1750996195644,1.74227,2446.5,2446.3,0.40859]
[1750996195941,1.3431,2446.4,2446.3,0.40859]
[1750996196944,1.3431,2446.4,2446.2,1.1214]
[1750996197146,0.7106,2446.3,2446.2,1.1214]
[1750996200146,0.7106,2446.3,2446.2,4.3292]
[1750996200347,0.7302,2446.6,2446.2,6.87285594]
[1750996200538,0.7302,2446.6,2446.4,0.40857]
[1750996200738,0.7302,2446.6,2446.5,0.40857]
[1750996201142,0.7302,2446.6,2446.5,3.61637]
[1750996201541,0.7302,2446.6,2446.5,4.32427]
[1750996202534,0.7087,2446.7,2446.6,0.40855]
[1750996202937,1.73296146,2446.7,2446.6,0.40855]
[1750996207249,1.02426146,2446.7,2446.6,0.40855]
[1750996207648,11.76771006,2447.2,2446.6,0.40855]
[1750996207649,2.44645412,2447.2,2447.1,0.40846]
[1750996207848,3.26193883,2447.6,2447.5,0.4084]
[1750996208243,3.26193883,2447.9,2447.5,43.75225594]
[1750996208451,3.26193883,2447.9,2447.8,6.56840594]
[1750996208646,3.26193883,2448.0,2447.9,0.40833]
[1750996208944,3.26193883,2448.1,2447.9,0.40833]
[1750996209147,3.26193883,2448.1,2448.0,0.40831]
[1750996209550,3.26193883,2448.2,2448.0,0.40831]
[1750996210446,3.26193883,2448.2,2448.1,0.4083]
[1750996210852,2.0856754,2448.3,2448.2,0.40828]
[1750996211049,3.2078,2448.7,2448.2,3.36053594]
[1750996211050,4.07742353,2448.6,2448.2,3.36053594]
[1750996211347,8.42323353,2448.7,2448.2,2.95225594]
[1750996211549,8.01502353,2448.7,2448.2,2.95225594]
[1750996211852,0.40828,2448.2,2448.1,9.5758]
[1750996212056,0.40828,2448.2,2448.1,6.368]
[1750996212646,3.68305594,2448.3,2447.9,0.6731]
[1750996212847,0.40836,2447.7,2447.6,40.8]
[1750996213439,12.71538853,2449.3,2447.6,48.75225594]
[1750996213644,5.47772353,2449.0,2448.4,6.56829594]
[1750996213945,1.3816,2448.9,2448.4,3.2078]
[1750996214153,2.95225594,2448.6,2448.1,6.367]
[1750996214454,2.95225594,2448.6,2448.1,9.31925594]
[1750996214643,3.36047594,2448.6,2448.2,0.40828]
[1750996214843,1.84671,2448.7,2448.3,0.40826]
[1750996215047,0.40822,2448.6,2448.3,0.40826]
[1750996215241,1.84672,2448.6,2448.2,0.40827]
[1750996215550,1.84672,2448.6,2448.3,0.40826]
[1750996215750,1.4385,2448.6,2448.3,0.40826]
[1750996216348,1.4385,2448.6,2448.4,0.40824]
[1750996216550,1.4385,2448.6,2448.3,0.40826]
[1750996216751,1.4385,2448.6,2448.2,0.6688]
[1750996217053,0.6728,2448.5,2448.3,0.40826]
[1750996217951,0.6728,2448.5,2448.2,1.07707]
[1750996218150,0.6728,2448.5,2448.3,0.40826]
[1750996218448,2.011,2448.5,2448.2,1.07708]
[1750996218650,5.2188,2448.5,2448.2,0.6688]
[1750996218845,1.12955,2448.4,2448.2,0.6688]
[1750996219045,2.46775,2448.4,2448.2,0.6688]
[1750996219755,0.40826,2448.3,2448.0,6.8993]
[1750996220145,2.46776,2448.4,2448.1,0.40829]
[1750996220346,2.0595,2448.4,2448.0,6.89931]
[1750996220545,2.0595,2448.4,2447.9,3.61612]
[1750996220747,0.4083,2448.1,2447.9,3.61612]
[1750996220956,0.4083,2448.1,2447.9,3.2078]
[1750996221253,0.40829,2448.2,2447.9,3.61613]
[1750996221558,1.81629,2448.2,2447.9,3.2078]
[1750996221950,1.81629,2448.2,2447.9,3.61612]
[1750996223161,1.81629,2448.2,2447.9,3.2078]
[1750996223162,0.4083,2448.1,2447.9,3.2078]
[1750996223357,0.4083,2448.1,2447.9,3.61613]
[1750996223855,1.81629,2448.2,2447.9,3.61613]
[1750996224354,1.408,2448.2,2448.0,0.40831]
[1750996224850,1.81628,2448.2,2448.0,0.40831]
[1750996225054,1.81629,2448.2,2447.9,3.61612]
[1750996225861,0.4083,2448.1,2447.9,3.2078]
[1750996226047,1.12361,2448.1,2447.9,3.2078]
[1750996226357,1.1236,2448.1,2447.9,3.61613]
[1750996226552,0.40831,2448.0,2447.9,3.2078]
[1750996226747,0.40833,2447.9,2447.8,0.6932]
[1750996226952,1.3459,2448.0,2447.6,44.41617]
[1750996227354,0.40834,2447.9,2447.6,44.41617]
[1750996227560,0.40834,2447.9,2447.7,0.40836]
[1750996227757,1.3459,2448.0,2447.8,0.40834]
[1750996227952,0.7153,2448.1,2447.8,0.40834]
[1750996228264,0.7153,2448.1,2447.9,0.40833]
[1750996228657,1.1236,2448.1,2447.9,0.40833]
[1750996228858,0.7153,2448.1,2447.9,0.40833]
[1750996229964,1.1236,2448.1,2447.9,0.40833]
[1750996230462,0.7153,2448.1,2447.9,0.40833]
[1750996231262,0.7153,2448.1,2448.0,0.40831]
[1750996231461,0.7153,2448.1,2447.9,1.07902]
[1750996231763,0.7153,2448.1,2448.0,0.40831]
[1750996232163,0.7153,2448.1,2447.9,1.07902]
[1750996232364,2.1119,2448.1,2448.0,0.40831]
[1750996232763,0.7153,2448.1,2448.0,0.40831]
[1750996233068,3.2078,2448.2,2448.1,0.4083]
[1750996235073,0.29446674,2449.2,2448.1,11.491]
[1750996235274,0.96701143,2449.1,2449.0,3.36040594]
[1750996235675,0.96701143,2449.1,2448.9,1.12595]
[1750996235964,0.29446674,2449.2,2449.0,0.40815]
[1750996236170,0.9673666,2449.1,2448.9,0.95725083]
[1750996236371,2.13057674,2449.2,2448.9,0.95725083]
[1750996236577,0.9673666,2449.1,2448.9,0.54909083]
[1750996236779,0.29446674,2449.2,2449.1,0.40813]
[1750996236981,0.29446674,2449.2,2449.1,3.61593]
[1750996237171,1.26169394,2449.2,2449.1,3.61593]
[1750996237684,0.29446674,2449.2,2449.1,0.40813]
[1750996237877,0.29446674,2449.2,2449.1,3.61593]
[1750996240587,0.29446674,2449.2,2449.1,3.2078]
[1750996241188,0.29446674,2449.2,2449.1,3.61593]
[1750996241983,0.29446674,2449.2,2449.1,3.2078]
[1750996242194,0.29446674,2449.2,2449.0,0.40814]
[1750996242487,0.95306674,2449.2,2449.0,0.40814]
[1750996242687,1.36118674,2449.2,2448.9,41.75724083]
[1750996242885,0.40814,2449.1,2448.9,40.8]
[1750996243089,0.6659,2449.1,2448.8,3.2078]
[1750996243277,0.40816,2449.0,2448.8,3.2078]
[1750996243483,0.40816,2448.9,2448.8,44.0078]
[1750996243682,0.40816,2449.0,2448.8,44.41597]
[1750996243883,0.40816,2449.0,2448.8,3.61597]
[1750996244083,2.39764,2449.1,2448.9,0.40816]
[1750996244485,0.40815,2449.0,2448.8,3.61597]
[1750996246390,0.40815,2449.0,2448.8,3.61598]
[1750996247590,0.40816,2448.9,2448.8,3.2078]
[1750996247886,10.10594,2449.1,2448.8,0.40817]
[1750996248092,10.3669,2449.1,2448.9,0.40816]
[1750996248293,10.77503,2449.1,2448.8,0.40817]
[1750996248498,0.40816,2449.0,2448.7,5.42194594]
[1750996249894,0.40816,2449.0,2448.7,1.11029]